Cogmind - Beta 17 *** ADVENTURER MODE // 2026.08.19 @ 21:04:59 Player: Limbermonkey Result: Destroyed by S-10 Pest with Light Assault Rifle Performance ------------- Evolutions (1) 500 Regions Visited (3) 600 Robots Destroyed (4) 20 Value Destroyed (181) 181 Prototype IDs (1) 20 Alien Tech Used (0) 0 Bonus (200) 200 TOTAL SCORE: 1521 Bonus ------- Pacifist 200 Cogmind --------- Core Integrity 0/400 Matter 300/300 Energy 125/125 System Corruption 0% Temperature Cool (0) Movement Hovering (120) Ox1 Location -9/Mines Parts ------- > --- POWER (1) -------- Light Ion Engine > --- PROPULSION (3) --- Improved Hover Unit > --- UTILITY (3) ------ Heat Sink Small Storage Unit Salvage Targeting Computer > --- WEAPON (2) ------- Assault Rifle Mini Grenade Launcher > --- INVENTORY (8) ---- Heat Sink Heat Sink Small Storage Unit Huge Storage Unit Light Armor Plating Light Armor Plating Shield Generator Mining Laser Peak State ------------ > --- POWER ------------ Ion Engine > --- PROPULSION ------- Improved Hover Unit Improved Hover Unit Improved Hover Unit > --- UTILITY ---------- Huge Storage Unit Salvage Targeting Computer > --- WEAPON ----------- Improved EM Shotgun > --- INVENTORY -------- Light Ion Engine Aluminum Leg Aluminum Leg Wheel Compact Wheel Small Storage Unit Small Storage Unit EM Pulse Gun Small Laser Assault Rifle Mini Grenade Launcher [Rating: 14] Favorites ----------- Power Ion Engine Engine Ion Engine Propulsion Aluminum Leg Leg Aluminum Leg Wheel Compact Wheel Hover Unit Improved Hover Unit Utility Salvage Targeting Computer Device Heat Sink Storage Small Storage Unit Processor Salvage Targeting Computer Weapon Assault Rifle Energy Gun Improved EM Shotgun Ballistic Gun Assault Rifle Launcher Mini Grenade Launcher Build | -11 -10 -9 -9 ------- Run | Yrd Mat Mat Min Slots Evolved 2 | . . 2 . Power . | . . . . Propulsion 1 | . . 1 . Utility 1 | . . 1 . Weapon . | . . . . Parts Attached 21 | 4 2 15 . Power 2 | 1 . 1 . Engine 2 | 1 . 1 . Core . | . . . . Reactor . | . . . . Propulsion 9 | 2 . 7 . Treads . | . . . . Leg 4 | . . 4 . Wheel 2 | 2 . . . Hover 3 | . . 3 . Flight . | . . . . Utility 5 | 1 1 3 . Device 1 | . . 1 . Storage 3 | 1 . 2 . Processor 1 | . 1 . . Hackware . | . . . . Protection . | . . . . Artifact . | . . . . Weapon 5 | . 1 4 . Energy Gun 3 | . 1 2 . Energy Cannon . | . . . . Ballistic Gun 1 | . . 1 . Ballistic Cannon . | . . . . Launcher 1 | . . 1 . Special Weapon . | . . . . Impact Weapon . | . . . . Slashing Weapon . | . . . . Piercing Weapon . | . . . . Special Melee Weapon . | . . . . Unidentified Prototypes 1 | . 1 . . Parts Lost 11 | . . 9 2 Power 1 | . . 1 . Propulsion 7 | . . 5 2 Utility . | . . . . Weapon 3 | . . 3 . Highest Loss Streak 6 | . . 6 2 To Critical Strikes . | . . . . Average Backups 7 | 3 6 8 8 Power . | . 1 . . Propulsion 1 | 1 2 2 . Utility 3 | . . 3 7 Weapon 2 | 1 3 2 1 Tool/Special . | . . . . Unused Backups 5 | . . . 5 Power . | . . . . Propulsion . | . . . . Utility 5 | . . . 5 Weapon . | . . . . Tool/Special . | . . . . Average Slot Usage (%) 72 | . 58 69 98 Engine 10 | . 14 7 11 Leg 7 | . . 11 10 Wheel 12 | . 28 7 . Hover 7 | . . 5 21 Device 4 | . . 4 11 Storage 11 | . 14 11 11 Processor 7 | . . 11 11 Energy Gun 3 | . . 7 . Ballistic Gun 3 | . . 1 11 Launcher 3 | . . 1 11 Peak Build Rating 14 | 4 9 14 13 Average Rating 8 | 3 4 9 12 On Entrance 6 | . 4 9 13 Avg Prop Armor Cover (%) 8 | . . 8 8 Naked Turns . | . . . . Heaviest Build 88 | 10 13 88 12 Greatest Support 30 | 26 26 30 14 Greatest Overweight (x) 8 | . . 8 1 Average Overweight (x) . | . . 1 . Largest Inventory Capacity 25 | 8 8 25 8 Average Capacity 14 | 7 8 21 8 Most Carried 12 | 6 8 12 8 Average Carried 7 | 3 7 8 8 Final Capacity 8 | 8 8 8 8 Final Carried 8 | 6 8 8 8 Class Distribution -------------------- 100% | Mutant Dominant Class ---------------- Mutant | -10/Materials Mutant | -9/Materials Mutant | -9/Mines Resources | -11 -10 -9 -9 ----------- Run | Yrd Mat Mat Min Matter Collected 419 | 240 . 50 129 Remotely . | . . . . Salvage Created 203 | . . 203 . Parts 13 | . . 13 . Haulers Intercepted . | . . . . Recyclers Shooed . | . . . . Parts Field Recycled . | . . . . Retrieved Matter . | . . . . Parts Self-Destructed . | . . . . Prevented . | . . . . Parts Restored . | . . . . Kills | -11 -10 -9 -9 ------- Run | Yrd Mat Mat Min Combat Hostiles Destroyed 4 | . . 4 . Guns 3 | . . 3 . AOE 1 | . . 1 . Classes Destroyed 2 | . . 2 . Grunt 2 | . . 2 . Sentry 2 | . . 2 . Best Kill Streak 4 | . . 4 . Combat Bots Only 4 | . . 4 . Max Kills in Single Turn 1 | . . 1 . Gunslinging . | . . . . Exploded 1 | . . 1 . Melee . | . . . . Uniques/NPCs Destroyed . | . . . . Combat | -11 -10 -9 -9 -------- Run | Yrd Mat Mat Min Hostile Shots Fired 180 | . . 160 20 Missed 52 | . . 46 6 Hits 128 | . . 114 14 Projectile 128 | . . 114 14 Critical Strikes 2 | . . 2 . Damage Taken 1313 | . . 1228 85 Core 402 | . . 380 22 Absorbed by Shields . | . . . . Ignored by Resistances 383 | . . 355 28 Core Remaining (%) 100 | 100 100 . . Volleys Fired 15 | . . 15 . Largest 2 | . . 2 . Hottest 80 | . . 80 . Shots Fired 19 | . . 19 . Gun 19 | . . 19 . Cannon . | . . . . Launcher . | . . . . Special . | . . . . Kinetic . | . . . . Thermal 15 | . . 15 . Explosive . | . . . . Electromagnetic 4 | . . 4 . Robot Hit Streak 19 | . . 19 . Robot Miss Streak . | . . . . Penetration Max . | . . . . Secondary Targets 1 | . . 1 . Max Gunslinging Chain 1 | . . 1 . Shots Hit Robots 19 | . . 19 . Core Hits 8 | . . 8 . Critical Kills . | . . . . Critical Parts Destroyed . | . . . . Critical Strikes . | . . . . Melee Attacks . | . . . . Impact . | . . . . Slashing . | . . . . Piercing . | . . . . Sneak Attacks . | . . . . Combat Hostiles . | . . . . Follow-up Attacks . | . . . . Damage Inflicted 365 | . . 365 . Guns 209 | . . 209 . Cannons . | . . . . Explosions 141 | . . 141 . Melee . | . . . . Ramming 15 | . . 15 . Kinetic . | . . . . Thermal 300 | . . 300 . Explosive . | . . . . Electromagnetic 50 | . . 50 . Impact . | . . . . Slashing . | . . . . Piercing . | . . . . Highest Corruption . | . . . . Average Corruption . | . . . . Corruption Purged . | . . . . Corruption Blocked . | . . . . Overload Shots . | . . . . Overflow Damage . | . . . . Projectiles . | . . . . Explosions . | . . . . Melee . | . . . . Knockbacks . | . . . . Impact . | . . . . Kinetic . | . . . . Secondary . | . . . . Self-Inflicted Damage 47 | . . 47 . Shots 1 | . . 1 . Rammed 2 | . . 2 . Targets Rammed 2 | . . 2 . Kicked . | . . . . Crushed . | . . . . Highest Temperature 60 | . . 60 . Average Temperature 27 | . . 27 . Received Heat Transfer 684 | . . 684 . Siege Activations . | . . . . Martial Activations . | . . . . Shielding Activations . | . . . . Robots Disrupted . | . . . . Combat Hostiles . | . . . . Robots Corrupted . | . . . . Combat Hostiles . | . . . . Parts Fried . | . . . . Impact Corruptions . | . . . . Robots Melted . | . . . . Combat Hostiles . | . . . . Parts Melted 3 | . . 3 . Heat Transferred 450 | . . 450 . Parts Sabotaged . | . . . . Parts Stolen . | . . . . Parts Stripped . | . . . . Power Chain Reactions 1 | . . 1 . Alert | -11 -10 -9 -9 ------- Run | Yrd Mat Mat Min Maximum Alert Level . | . . . . Low Security (%) 100 | 100 100 100 100 Level 1 . | . . . . Level 2 . | . . . . Level 3 . | . . . . Level 4 . | . . . . Level 5 . | . . . . High Security . | . . . . Max Security . | . . . . Peak Influence 93 | . 10 93 18 Initial 18 | . . . 18 Average 15 | . 1 30 4 Influence Increases 178 | . 10 168 . Destroy 0b10 Robot/C 80 | . . 80 . Destroy Leader 30 | . . 30 . Successful Hack 10 | . 10 . . Disable Machine 9 | . . 9 . Destroy Structure 4 | . . 4 . Partial Spotted 15 | . . 15 . Lose Combat Pursuer 30 | . . 30 . Influence Decreases 178 | . 10 110 58 Entered New Map 40 | . . . 40 Time Decay 98 | . 10 70 18 Lost Part 40 | . . 40 . Squads Dispatched 1 | . . 1 . Investigation . | . . . . Extermination . | . . . . Reinforcement 1 | . . 1 . Assault . | . . . . Garrison . | . . . . Intercept . | . . . . Searches Triggered . | . . . . Construction Impeded . | . . . . Haulers Reinforced . | . . . . Active Scanning Responses . | . . . . Cargo Convoy Interrupts . | . . . . Stealth | -11 -10 -9 -9 --------- Run | Yrd Mat Mat Min Distress Signals 1 | . . 1 . Communications Jammed . | . . . . Distress Signals . | . . . . Times Spotted 19 | . . 16 3 Peak Tracking Total 10 | . . 10 3 Tactical Retreats 2 | . . 2 . Traps | -11 -10 -9 -9 ------- Run | Yrd Mat Mat Min Traps Triggered . | . . . . Indirectly . | . . . . Trap Hack Attempts . | . . . . Triggered . | . . . . Disarmed 3 | . 3 . . Reprogrammed . | . . . . Reused . | . . . . Traps Extracted . | . . . . Installed . | . . . . Triggered . | . . . . Machines | -11 -10 -9 -9 ---------- Run | Yrd Mat Mat Min Machines Disabled 1 | . . 1 . Max in Single Turn 1 | . . 1 . Machines Repaired . | . . . . Machines Dismantled . | . . . . Machines Sabotaged . | . . . . Overloaded Fab Kills . | . . . . Hacking | -11 -10 -9 -9 --------- Run | Yrd Mat Mat Min Machines Accessed 2 | . 2 . . Terminals 1 | . 1 . . Fabricators . | . . . . Repair Stations . | . . . . Recycling Units 1 | . 1 . . Scanalyzers . | . . . . Garrison Access . | . . . . Total Hacks 7 | . 7 . . Successful 4 | . 4 . . Failed 3 | . 3 . . Catastrophic . | . . . . Database Lockouts . | . . . . Manual 7 | . 7 . . Terminals 6 | . 6 . . Fabricators . | . . . . Repair Stations . | . . . . Recycling Units 1 | . 1 . . Scanalyzers . | . . . . Garrison Access . | . . . . Terminal Hacks 3 | . 3 . . Locate Traps 1 | . 1 . . Disarm Traps 1 | . 1 . . Coupling Status 1 | . 1 . . Fabricator Hacks . | . . . . Repair Station Hacks . | . . . . Recycling Unit Hacks . | . . . . Scanalyzer . | . . . . Garrison Access Hacks . | . . . . Unauthorized Hacks 1 | . 1 . . Terminals . | . . . . Fabricators . | . . . . Repair Stations . | . . . . Recycling Units 1 | . 1 . . Mask 1 | . 1 . . Scanalyzers . | . . . . Garrison Access . | . . . . Data Cores Recovered . | . . . . Used . | . . . . Hacking Detections 1 | . 1 . . Full Trace Events 1 | . 1 . . Feedback Events . | . . . . Feedback Blocked . | . . . . Robot Schematics Acquired . | . . . . Robots Built . | . . . . Authchips . | . . . . Time . | . . . . Total Robot Build Rating . | . . . . Part Schematics Acquired . | . . . . Parts Built . | . . . . Authchips . | . . . . Time . | . . . . Total Part Build Rating . | . . . . Part Studies Acquired . | . . . . Parts Repaired . | . . . . Time . | . . . . Parts Recycled . | . . . . Recycled Matter . | . . . . Retrieved Matter . | . . . . Retrieved Components . | . . . . Parts Scanalyzed . | . . . . Part Schematics Acquired . | . . . . Parts Damaged . | . . . . Bothacking | -11 -10 -9 -9 ------------ Run | Yrd Mat Mat Min Used RIF Installer . | . . . . Robots Hacked . | . . . . Non-combat . | . . . . Combat . | . . . . Robot Hacks Applied . | . . . . Relay Couplers Released . | . . . . Fabnet Peak Effective % . | . . . . Robots Rewired . | . . . . Allies Hacked . | . . . . Hacks Repelled . | . . . . Allies | -11 -10 -9 -9 -------- Run | Yrd Mat Mat Min Total Allies . | . . . . Largest Group . | . . . . Highest-Rated Group . | . . . . Highest-Rated Ally . | . . . . Total Orders . | . . . . Ally Attacks . | . . . . Total Damage . | . . . . Kills . | . . . . Allies Corrupted . | . . . . Allies Melted . | . . . . Intel | -11 -10 -9 -9 ------- Run | Yrd Mat Mat Min Active Infowar (turns) . | . . . . Robot Analysis Total . | . . . . Derelict Logs Recovered 3 | . . . 3 Drone Launches . | . . . . Drone Recoveries . | . . . . Exploration | -11 -10 -9 -9 ------------- Run | Yrd Mat Mat Min Turns Passed 612 | 46 168 279 119 Spaces Moved 536 | 38 179 146 173 Core 1 | 1 . . . Treads . | . . . . Legs 22 | . . 22 . Wheels 286 | 37 179 70 . Hover 227 | . . 54 173 Flight . | . . . . Fastest Speed 50 | 50 90 66 56 Average Speed 96 | 88 90 139 67 Slowest Speed 680 | 90 90 680 120 Overloaded Moves . | . . . . Propulsion Burnouts . | . . . . Robots Hopped . | . . . . Potential Cave-ins . | . . . . Cave-ins Triggered . | . . . . Exploration Rate (%) 23 | 3 22 24 44 Regions Visited 3 Branch Regions 1 Pre-discovered Areas 1 | . . . 1 Known Exits Taken . | . . . . Unknown Exits Taken 3 | 1 1 1 . Scrap Searched 1 | . . . 1 Spaces Dug . | . . . . Terrain Destroyed 5 | . . 5 . Melee . | . . . . Projectile . | . . . . AOE 5 | . . 5 . Terrain Rammed . | . . . . Walls Destroyed . | . . . . Machines Disabled . | . . . . Actions | -11 -10 -9 -9 --------- Run | Yrd Mat Mat Min Total 605 | 48 184 197 176 Wait 5 | . 2 . 3 Move 533 | 37 178 145 173 Hop . | . . . . Pick Up 15 | 7 2 6 . Fast Attach 15 | 3 2 10 . Attach 7 | 1 . 6 . Detach 3 | . . 3 . Swap 5 | . . 5 . Drop 5 | . . 5 . Fire 15 | . . 15 . Melee . | . . . . Ram 2 | . . 2 . Kick . | . . . . Crush . | . . . . Escape Stasis . | . . . . Rewire . | . . . . Trap . | . . . . Miscellaneous . | . . . . Route ------- -11/Scrapyard -10/Materials -9/Materials (discovered 2 exits: [*Min] / [*Sto]) -9/Mines History --------- Turn | Location | Event 25 | -11/Scrapyard | Discovered new exit (range 15) 47 | -11/Scrapyard | Entered Materials 100 | -10/Materials | Discovered new exit (range 10) 215 | -10/Materials | Entered another Materials area 215 | -9/Materials | Evolved 2 slots: Propulsion x1, Utility x1 233 | -9/Materials | Discovered new exit (range 16) 324 | -9/Materials | Build established: Mutant 341 | -9/Materials | Core integrity fell below 50% 384 | -9/Materials | Lost 6 parts (1p3n2w) 423 | -9/Materials | Core integrity fell below 20% 463 | -9/Materials | Lost 3 parts (2n1w) 483 | -9/Materials | Discovered new exit (range 12) 494 | -9/Materials | Entered Mines 549 | -9/Mines | Learned Materials terminal intel 589 | -9/Mines | Learned location of Storage (-9) 605 | -9/Mines | A weapon hastily lodged in a ceiling crevice suddenly fell to the ground 613 | -9/Mines | Destroyed by S-10 Pest with Light Assault Rifle Last Messages --------------- GOAL=ESCAPE 00502_ Extracted 100 matter. 00503_ Extracted 29 matter. 00512_ Searching scrap... 00512_ Found Arm. Wheel. 00512_ Found Flight Unit. 00512_ Found Targeting Computer. 00512_ Found Cargo Storage Unit. 00512_ Found 52 Matter. 00549_ Acquired derelict log, extracted data. Data stored: Materials terminal intel. 00553_ K-01 Serf collects debris. 00585_ Acquired derelict log, extracted data. Data stored: Storage entrances (x1). 00589_ Acquired derelict log, extracted data. World map updated: -9/Storage. 00605_ A Mak. Axe has been hastily shoved under some rubble with a note attached: "Chop chop!" 00607_ Aluminum Leg destroyed. 00609_ Imp. Hover Unit destroyed. Map ----- +----------------------------------------------------+ | | | ?????????????????????????????????????????????????? | | ?????????????????????????????????????????????????? | | ????????????????????####????####????????????####?? | | ??????????????####### ###### ####??####??## ##? | | ###########??## ## #### #### ## | | #### ## # | | ! | | ####### #### | | #?????# #### ! | | ##????# ####### | | #????# #?????## #### | | " #????####### ### #??????### ##??? | | " #??????????## ## ##?# #????????## ##???? | | " #???????????####### ##??# #?????????####????? | | #?????????????????### #???# #?????????????????? | | ###???????????????????# #???# #?????????????????? | | ??????????????????????# #???# ?????????????????? | | ???????################ #??? ?????????????????? | | ???????# #??? ????????????????? | | ???????# ################??? ????????????????? | | ???????# #?????????????????? ????????????????# | | ???????# #????#####????????? ????????????????# | | ??????## ###### ##????????????#????????????? | | ??????# u s ######### #???????????? | | ??????# s @ #?????????????? | | ??????# ######s ######## ##?????????????? | | ??????# #????# #????????????????????????????? | | ??????# #????## #????????????????????????????? | | ??????# #?????##/ ##????????????????????????????? | | ??????# #??????####?????????????????????????????? | | ??????# #???????????????????????????????????????? | | ?????? ????????????????????????????????????????? | | ??????# ????????????????????????????????????????? | | ?????? ????????????????????????????????????????? | | ?????? ????????????????????????????????????????? | | ?????? ????????????????????????????????????????? | | ?????? ????????????????????????????????????????? | | ?????# ????????????????????????????????????????? | | ?????????????????????????????????????????????????? | | ?????????????????????????????????????????????????? | | ?????????????????????????????????????????????????? | | ?????????????????????????????????????????????????? | | ?????????????????????????????????????????????????? | | ?????????????????????????????????????????????????? | | ?????????????????????????????????????????????????? | | ?????????????????????????????????????????????????? | | ?????????????????????????????????????????????????? | | ?????????????????????????????????????????????????? | | ?????????????????????????????????????????????????? | +----------------------------------------------------+ Best States ------------- Heat Dissipation 38 Energy Generation 10 Energy Capacity 250 Matter Stores 300 Matter Capacity 300 Sight Range 16 Terrain Scan Density 10 Resistance: KI 20 Resistance: TH 20 Resistance: EX 20 Resistance: EM 20 Resistance: I 20 Resistance: S 20 Resistance: P 20 Evasion (%) 51 Salvage Targeting 1 Offensive Hacking 10 Item Schematics ----------------- None Robot Schematics ------------------ None Fabricated ------------ Nothing Repaired ---------- Nothing Studied --------- None Alien Tech Used ----------------- None Achievements -------------- Myspace True Hacker Challenges ------------ None Game ------ Seed AdvancedDeuteriumLog Manual? 0 Play Time 00:19:57 Cumulative 22.2 hours Start 2026.08.19 @ 19:18:40 End 2026.08.19 @ 21:04:59 Sessions 1 Manual Loads 0 Difficulty Adventurer Special Mode None Game No. 15 Rogue 0 Adventurer 15 Explorer 0 Win Type - Total 0 Types 0/0/0/0/0/0/0/0/0/0 Lore% 12 Gallery% 18 Achievement% 17 Wizard Run 0 Options --------- Layout 1 ASCII 0 Keyboard 0 Movement Numpad Keybinds 0 Fullscreen 1 Font 48/Smallcaps Map View 50x35 Zoom Use 0% Tactical HUD 1 Map Filters NONE Filters NONE Steam 1 RUN: 85d57fd1-2adb-4eea-9bd9-5d46f2d73854